Cogmind - Beta 13 @@@ ROGUE MODE // 2024.04.08 @ 11:34:16 Player: AeroCross Result: Destroyed by G-47 Trooper with Particle Gun Performance ------------- Evolutions (3) 1500 Regions Visited (9) 1800 Robots Destroyed (41) 205 Value Destroyed (1338) 1338 Prototype IDs (26) 520 Alien Tech Used (0) 0 Bonus (595) 595 TOTAL SCORE: 5958 Bonus ------- Follower Combat Kills 295 Aligned with FarCom 300 Cogmind --------- Core Integrity 0/700 Matter 291/300 Energy 170/170 System Corruption 2% Temperature Cool (9) Movement Walking (190) Ox1 Location -7/Lower Caves Parts ------- > --- POWER (2) -------- Makeshift Power Source > --- PROPULSION (3) --- Improved Carbon-fiber Leg > --- UTILITY (5) ------ Experimental Sensor Array Hardened Heavy Armor Plating > --- WEAPON (3) ------- (None) > --- INVENTORY (5) ---- Improved Heat Sink Makeshift Light Armor Plating Light EM Pulse Cannon Peak State ------------ > --- POWER ------------ Improved Deuterium Engine Improved Deuterium Engine > --- PROPULSION ------- Carbon-fiber Leg Potential Leg Potential Leg > --- UTILITY ---------- Medium Storage Unit Trap Scanner Improved Signal Interpreter Terrain Scan Processor Improved Light Armor Plating > --- WEAPON ----------- Heavy Particle Gun Heavy Particle Gun Light Assault Rifle > --- INVENTORY -------- Improved Deuterium Engine Improved Deuterium Engine Large Matter Pod Large Matter Pod Experimental Sensor Array Improved Shield Generator Trap Extractor Light EM Pulse Cannon Rocket Launcher Improved Grenade Launcher [Rating: 55] Favorites ----------- Power Improved Deuterium Engine Engine Improved Deuterium Engine Propulsion Potential Leg Treads Light Treads Leg Potential Leg Wheel Wheel Utility Signal Interpreter Device Trap Extractor Storage Medium Storage Unit Processor Signal Interpreter Protection Improved Light Armor Plating Weapon Light Assault Rifle Energy Gun Heavy Particle Gun Energy Cannon Particle Cannon Ballistic Gun Light Assault Rifle Ballistic Cannon Mini Assault Cannon Launcher Improved Grenade Launcher Special Weapon Mining Laser Build | -11 -10 -10 -10 -9 -8 -8 -7 -7 -7 ------- Run | Yrd Mat Min Exi Min Mat Sto Fac Low Low Slots Evolved 6 | . . . . . 4 . 2 . . Power 1 | . . . . . 1 . . . . Propulsion 1 | . . . . . 1 . . . . Utility 3 | . . . . . 1 . 2 . . Weapon 1 | . . . . . 1 . . . . Parts Attached 68 | 6 14 9 3 1 7 3 13 8 4 Power 10 | 1 1 1 . 1 1 . 4 . 1 Engine 10 | 1 1 1 . 1 1 . 4 . 1 Core . | . . . . . . . . . . Reactor . | . . . . . . . . . . Propulsion 11 | 2 3 2 2 . 1 . . . 1 Treads 2 | . . 2 . . . . . . . Leg 4 | . . . 2 . 1 . . . 1 Wheel 5 | 2 3 . . . . . . . . Hover . | . . . . . . . . . . Flight . | . . . . . . . . . . Utility 19 | 1 3 . 1 . 1 . 5 6 2 Device 7 | . 1 . . . . . 3 2 1 Storage 3 | 1 . . 1 . . . . 1 . Processor 4 | . 2 . . . 1 . 1 . . Hackware . | . . . . . . . . . . Protection 5 | . . . . . . . 1 3 1 Artifact . | . . . . . . . . . . Weapon 28 | 2 7 6 . . 4 3 4 2 . Energy Gun 6 | 2 . . . . 1 3 . . . Energy Cannon 8 | . 4 2 . . 1 . 1 . . Ballistic Gun 7 | . 1 3 . . 2 . 1 . . Ballistic Cannon 1 | . . . . . . . 1 . . Launcher 3 | . . . . . . . 1 2 . Special Weapon 3 | . 2 1 . . . . . . . Impact Weapon . | . . . . . . . . . . Slashing Weapon . | . . . . . . . . . . Piercing Weapon . | . . . . . . . . . . Special Melee Weapon . | . . . . . . . . . . Unidentified Prototypes 3 | . . . . . . 1 1 . 1 Parts Lost 19 | . 4 6 . . . . 5 4 . Power 3 | . . 1 . . . . 1 1 . Propulsion 4 | . 2 1 . . . . 1 . . Utility 3 | . 1 . . . . . 1 1 . Weapon 9 | . 1 4 . . . . 2 2 . Highest Loss Streak 2 | . 2 2 . . . . 2 2 . To Critical Strikes . | . . . . . . . . . . Average Slot Usage (%) 83 | . 92 77 91 100 84 99 94 46 15 Engine 13 | . 14 14 14 14 14 18 15 7 3 Treads 4 | . . 25 11 . . . . . . Leg 14 | . . . 16 28 19 27 21 7 3 Wheel 2 | . 23 2 . . . . . . . Device 3 | . 7 . . . . . 8 7 5 Storage 6 | . 4 . 6 14 9 9 7 5 . Processor 13 | . 13 14 14 14 15 18 15 7 . Protection 1 | . . . . . . . 3 2 2 Energy Gun 5 | . 2 . . . 3 14 13 . . Energy Cannon 3 | . 19 10 . . 1 . . 3 . Ballistic Gun 12 | . 2 10 28 28 20 12 5 . . Naked Turns 97 | . . . . . . . . 76 21 Heaviest Build 47 | 10 18 13 17 19 32 32 47 47 25 Greatest Support 75 | 20 32 40 60 60 75 75 75 60 18 Greatest Overweight (x) 5 | . 1 . 2 . . . . 5 1 Average Overweight (x) . | . . . . . . . . . . Largest Inventory Capacity 10 | 8 8 5 10 10 10 10 10 10 5 Average Capacity 8 | 7 5 5 7 10 10 10 10 7 5 Most Carried 10 | 8 8 5 7 10 10 10 10 8 5 Average Carried 7 | 4 5 3 4 9 9 9 9 5 3 Final Capacity 10 | 8 5 5 10 10 10 10 10 5 5 Final Carried 10 | 6 5 3 7 10 10 8 7 5 3 Class Distribution -------------------- 59% | Mutant 21% | Skirmisher 11% | Scavenger-Skirmisher 3% | Commander-Skirmisher Dominant Class ---------------- Mutant | -10/Materials Mutant | -10/Mines Mutant | -10/Exiles Mutant | -9/Mines Scavenger-Skirmisher | -8/Materials Scavenger-Skirmisher | -8/Storage Skirmisher | -7/Factory Mutant | -7/Lower Caves Mutant | -7/Lower Caves Resources | -11 -10 -10 -10 -9 -8 -8 -7 -7 -7 ----------- Run | Yrd Mat Min Exi Min Mat Sto Fac Low Low Matter Collected 1017 | 221 186 83 30 . 125 30 100 205 37 Remotely . | . . . . . . . . . . Salvage Created 1267 | . 339 234 . . 244 . 192 258 . Parts 83 | . 26 18 . . 19 . 9 11 . Haulers Intercepted . | . . . . . . . . . . Recyclers Shooed . | . . . . . . . . . . Parts Field Recycled . | . . . . . . . . . . Retrieved Matter . | . . . . . . . . . . Parts Self-Destructed 8 | . . . . . . . . 8 . Prevented 3 | . . . . . . . . 3 . Kills | -11 -10 -10 -10 -9 -8 -8 -7 -7 -7 ------- Run | Yrd Mat Min Exi Min Mat Sto Fac Low Low Combat Hostiles Destroyed 34 | . 10 9 . . 4 . 4 7 . Melee 2 | . . 2 . . . . . . . Guns 10 | . . 3 . . 3 . 4 . . Cannons 15 | . 9 4 . . 1 . . 1 . AOE 7 | . 1 . . . . . . 6 . Classes Destroyed 11 | . 4 3 . . 2 . 1 1 . Worker 1 | . . 1 . . . . . . . Builder 2 | . 1 1 . . . . . . . Tunneler 1 | . . 1 . . . . . . . Recycler 1 | . . 1 . . . . . . . Watcher 2 | . 1 . . . 1 . . . . Swarmer 8 | . 1 7 . . . . . . . Grunt 19 | . 9 2 . . . . 2 6 . Duelist 1 | . . . . . . . . 1 . Sentry 3 | . . . . . 2 . 1 . . Hunter 2 | . . . . . 2 . . . . Programmer 1 | . . . . . . . 1 . . Best Kill Streak 7 | . 3 7 . . 2 . 1 5 . Combat Bots Only 5 | . 3 4 . . 2 . 1 5 . Max Kills in Single Turn 3 | . 2 1 . . 1 . 1 3 . Gunslinging . | . . . . . . . . . . Exploded 3 | . 1 . . . . . . 3 . Melee 1 | . . 1 . . . . . . . Uniques/NPCs Destroyed . | . . . . . . . . . . Combat | -11 -10 -10 -10 -9 -8 -8 -7 -7 -7 -------- Run | Yrd Mat Min Exi Min Mat Sto Fac Low Low Hostile Shots Fired 462 | . 67 73 . . 42 13 90 150 27 Missed 144 | . 19 15 . . 11 4 28 60 7 Damage Taken 4162 | . 545 488 . . 409 144 836 1410 330 Core 993 | . 123 69 . . 95 . 77 582 47 Absorbed by Shields 82 | . . . . . . . . 82 . Core Remaining (%) 68 | 100 . . . 23 . 82 . . . Volleys Fired 96 | . 33 25 . . 11 . 17 10 . Largest 3 | . 2 2 . . 3 . 3 2 . Hottest 200 | . 200 136 . . 107 . 130 92 . Shots Fired 183 | . 54 34 . . 33 . 49 13 . Gun 98 | . 9 15 . . 27 . 47 . . Cannon 68 | . 36 18 . . 6 . . 8 . Launcher 7 | . . . . . . . 2 5 . Special 10 | . 9 1 . . . . . . . Kinetic 65 | . 9 15 . . 24 . 17 . . Thermal 97 | . 45 19 . . 3 . 30 . . Explosive 7 | . . . . . . . 2 5 . Electromagnetic 14 | . . . . . 6 . . 8 . Robot Hit Streak 18 | . 4 4 . . 4 . 18 9 . Robot Miss Streak 6 | . 6 4 . . 2 . 4 1 . Penetration Max . | . . . . . . . . . . Secondary Targets 1 | . . . . . . . 1 . . Max Gunslinging Chain 1 | . . . . . . . 1 . . Shots Hit Robots 99 | . 20 18 . . 19 . 36 6 . Core Hits 61 | . 13 13 . . 10 . 11 14 . Critical Kills . | . . . . . . . . . . Critical Parts Destroyed . | . . . . . . . . . . Critical Strikes . | . . . . . . . . . . Melee Attacks . | . . . . . . . . . . Impact . | . . . . . . . . . . Slashing . | . . . . . . . . . . Piercing . | . . . . . . . . . . Sneak Attacks . | . . . . . . . . . . Combat Hostiles . | . . . . . . . . . . Follow-up Attacks . | . . . . . . . . . . Damage Inflicted 2429 | . 565 347 . . 268 . 622 627 . Guns 928 | . 36 116 . . 182 . 594 . . Cannons 627 | . 249 184 . . 80 . . 114 . Explosions 677 | . 136 . . . . . 28 513 . Melee . | . . . . . . . . . . Ramming 29 | . . 23 . . 6 . . . . Kinetic 428 | . 36 116 . . 138 . 138 . . Thermal 1237 | . 529 208 . . 44 . 456 . . Explosive 541 | . . . . . . . 28 513 . Electromagnetic 194 | . . . . . 80 . . 114 . Impact . | . . . . . . . . . . Slashing . | . . . . . . . . . . Piercing . | . . . . . . . . . . Highest Corruption 2 | . . . . . . . 2 2 2 Average Corruption 1 | . . . . . . . 1 2 2 Corruption Purged . | . . . . . . . . . . Corruption Blocked . | . . . . . . . . . . Effects 15 | . . . . . . . 5 7 3 Message Errors 1 | . . . . . . . 1 . . Matter Fused 5 | . . . . . . . 1 3 1 Heat Flow Errors 2 | . . . . . . . . 1 1 Energy Discharges 2 | . . . . . . . 1 . 1 Parts Rejected 1 | . . . . . . . 1 . . Data Loss (minor) 3 | . . . . . . . . 3 . Misfires 1 | . . . . . . . 1 . . Overload Shots . | . . . . . . . . . . Overflow Damage 28 | . 28 . . . . . . . . Projectiles 28 | . 28 . . . . . . . . Explosions . | . . . . . . . . . . Melee . | . . . . . . . . . . Knockbacks . | . . . . . . . . . . Impact . | . . . . . . . . . . Kinetic . | . . . . . . . . . . Secondary . | . . . . . . . . . . Self-Inflicted Damage 20 | . . . . . . . 20 . . Shots 1 | . . . . . . . 1 . . Rammed 14 | . . 14 . . . . . . . Targets Rammed 21 | . . 20 . . 1 . . . . Kicked 1 | . . . . . 1 . . . . Crushed 6 | . . 6 . . . . . . . Highest Temperature 379 | . 280 379 . . 110 . 331 169 181 Average Temperature 117 | . 127 142 . . 44 . 129 44 61 Received Heat Transfer 1104 | . 297 48 . . 81 36 150 312 180 Effects 11 | . 2 3 . . . . 6 . . Shutdowns 1 | . . . . . . . 1 . . Energy Bleed 2 | . . . . . . . 2 . . Interference 7 | . 2 2 . . . . 3 . . Damage (minor) 1 | . . 1 . . . . . . . Siege Activations . | . . . . . . . . . . Robots Corrupted . | . . . . . . . . . . Combat Hostiles . | . . . . . . . . . . Parts Fried 1 | . . . . . 1 . . . . Impact Corruptions . | . . . . . . . . . . Robots Melted . | . . . . . . . . . . Combat Hostiles . | . . . . . . . . . . Parts Melted 5 | . 1 3 . . . . 1 . . Heat Transferred 2115 | . 844 383 . . 111 . 777 . . Parts Sabotaged . | . . . . . . . . . . Parts Stolen . | . . . . . . . . . . Parts Stripped . | . . . . . . . . . . Power Chain Reactions . | . . . . . . . . . . Alert | -11 -10 -10 -10 -9 -8 -8 -7 -7 -7 ------- Run | Yrd Mat Min Exi Min Mat Sto Fac Low Low Peak Influence 514 | . 355 305 . . 187 514 233 . . Initial 233 | . . 60 . . . . 233 . . Average 120 | . 191 200 . . 106 153 96 . . Maximum Alert Level 2 | . 1 1 . . . 2 1 . . Low Security (%) 73 | 100 51 55 . 100 100 61 73 . . Level 1 25 | . 48 44 . . . 27 26 . . Level 2 1 | . . . . . . 10 . . . Level 3 . | . . . . . . . . . . Level 4 . | . . . . . . . . . . Level 5 . | . . . . . . . . . . High Security . | . . . . . . . . . . Max Security . | . . . . . . . . . . Squads Dispatched 15 | . 2 . . . . 4 9 . . Investigation 6 | . 1 . . . . 1 4 . . Extermination 2 | . . . . . . . 2 . . Reinforcement 2 | . 1 . . . . 1 . . . Assault . | . . . . . . . . . . Garrison 5 | . . . . . . 2 3 . . Intercept . | . . . . . . . . . . Searches Triggered . | . . . . . . . . . . Construction Impeded . | . . . . . . . . . . Haulers Reinforced . | . . . . . . . . . . Active Scanning Responses . | . . . . . . . . . . Cargo Convoy Interrupts . | . . . . . . . . . . Stealth | -11 -10 -10 -10 -9 -8 -8 -7 -7 -7 --------- Run | Yrd Mat Min Exi Min Mat Sto Fac Low Low Distress Signals 8 | . 2 . . . . 5 1 . . Communications Jammed . | . . . . . . . . . . Distress Signals . | . . . . . . . . . . Times Spotted 91 | . 18 15 . . 6 13 14 21 4 Peak Tracking Total 7 | . 4 5 . . 3 6 5 7 4 Tactical Retreats 14 | . . 4 . . . . 3 7 . Traps | -11 -10 -10 -10 -9 -8 -8 -7 -7 -7 ------- Run | Yrd Mat Min Exi Min Mat Sto Fac Low Low Traps Triggered 2 | . . . . . . 2 . . . Indirectly . | . . . . . . . . . . Trap Hack Attempts . | . . . . . . . . . . Triggered . | . . . . . . . . . . Disarmed . | . . . . . . . . . . Reprogrammed . | . . . . . . . . . . Reused . | . . . . . . . . . . Traps Extracted . | . . . . . . . . . . Installed . | . . . . . . . . . . Triggered . | . . . . . . . . . . Machines | -11 -10 -10 -10 -9 -8 -8 -7 -7 -7 ---------- Run | Yrd Mat Min Exi Min Mat Sto Fac Low Low Machines Disabled 6 | . 5 . . . . 1 . . . Max in Single Turn 2 | . 2 . . . . . . . . Machines Repaired . | . . . . . . . . . . Machines Dismantled . | . . . . . . . . . . Machines Sabotaged . | . . . . . . . . . . Overloaded Fab Kills . | . . . . . . . . . . Hacking | -11 -10 -10 -10 -9 -8 -8 -7 -7 -7 --------- Run | Yrd Mat Min Exi Min Mat Sto Fac Low Low Machines Accessed 17 | . 1 . 5 . 2 4 5 . . Terminals 11 | . 1 . . . 2 4 4 . . Fabricators . | . . . . . . . . . . Repair Stations . | . . . . . . . . . . Recycling Units . | . . . . . . . . . . Scanalyzers 1 | . . . . . . . 1 . . Garrison Access . | . . . . . . . . . . Total Hacks 83 | . 5 . 50 . 4 11 13 . . Successful 63 | . 3 . 50 . 1 4 5 . . Failed 20 | . 2 . . . 3 7 8 . . Catastrophic 4 | . . . . . . 2 2 . . Database Lockouts . | . . . . . . . . . . Manual 11 | . . . 1 . 1 7 2 . . Terminals 31 | . 5 . . . 4 11 11 . . Fabricators . | . . . . . . . . . . Repair Stations . | . . . . . . . . . . Recycling Units . | . . . . . . . . . . Scanalyzers 2 | . . . . . . . 2 . . Garrison Access . | . . . . . . . . . . Terminal Hacks 63 | . 3 . 50 . 1 4 5 . . Record 55 | . 3 . 49 . . . 3 . . Open Door 1 | . . . . . . 1 . . . Alert Level 1 | . . . . . 1 . . . . Unreport Threat 2 | . . . . . . 2 . . . Locate Traps 1 | . . . . . . . 1 . . Extermination Status 1 | . . . . . . . 1 . . Zone Layout 1 | . . . . . . 1 . . . Derelict Proto ID Bank 1 | . . . 1 . . . . . . Fabricator Hacks . | . . . . . . . . . . Repair Station Hacks . | . . . . . . . . . . Recycling Unit Hacks . | . . . . . . . . . . Scanalyzer . | . . . . . . . . . . Garrison Access Hacks . | . . . . . . . . . . Unauthorized Hacks . | . . . . . . . . . . Terminals . | . . . . . . . . . . Fabricators . | . . . . . . . . . . Repair Stations . | . . . . . . . . . . Recycling Units . | . . . . . . . . . . Scanalyzers . | . . . . . . . . . . Garrison Access . | . . . . . . . . . . Data Cores Recovered . | . . . . . . . . . . Used . | . . . . . . . . . . Hacking Detections 10 | . 1 . . . 1 3 5 . . Full Trace Events 7 | . 1 . . . 1 1 4 . . Feedback Events . | . . . . . . . . . . Feedback Blocked . | . . . . . . . . . . Robot Schematics Acquired . | . . . . . . . . . . Robots Built . | . . . . . . . . . . Authchips . | . . . . . . . . . . Time . | . . . . . . . . . . Total Robot Build Rating . | . . . . . . . . . . Part Schematics Acquired . | . . . . . . . . . . Parts Built . | . . . . . . . . . . Authchips . | . . . . . . . . . . Time . | . . . . . . . . . . Total Part Build Rating . | . . . . . . . . . . Parts Repaired . | . . . . . . . . . . Time . | . . . . . . . . . . Parts Recycled . | . . . . . . . . . . Recycled Matter . | . . . . . . . . . . Retrieved Matter . | . . . . . . . . . . Retrieved Components . | . . . . . . . . . . Parts Scanalyzed . | . . . . . . . . . . Part Schematics Acquired . | . . . . . . . . . . Parts Damaged . | . . . . . . . . . . Bothacking | -11 -10 -10 -10 -9 -8 -8 -7 -7 -7 ------------ Run | Yrd Mat Min Exi Min Mat Sto Fac Low Low Used RIF Installer . | . . . . . . . . . . Robots Hacked . | . . . . . . . . . . Non-combat . | . . . . . . . . . . Combat . | . . . . . . . . . . Robot Hacks Applied . | . . . . . . . . . . Relay Couplers Released . | . . . . . . . . . . Fabnet Peak Effective % . | . . . . . . . . . . Robots Rewired . | . . . . . . . . . . Allies Hacked . | . . . . . . . . . . Hacks Repelled . | . . . . . . . . . . Allies | -11 -10 -10 -10 -9 -8 -8 -7 -7 -7 -------- Run | Yrd Mat Min Exi Min Mat Sto Fac Low Low Total Allies 10 | . . . . . . 10 . . . Largest Group 10 | . . . . . . 10 4 . . Highest-Rated Group 173 | . . . . . . 173 64 . . Highest-Rated Ally 29 | . . . . . . 29 16 . . Total Orders . | . . . . . . . . . . Ally Attacks 89 | . . . . . . 74 15 . . Total Damage 1050 | . . . . . . 901 149 . . Kills 19 | . . . . . . 19 . . . Allies Corrupted . | . . . . . . . . . . Allies Melted . | . . . . . . . . . . Intel | -11 -10 -10 -10 -9 -8 -8 -7 -7 -7 ------- Run | Yrd Mat Min Exi Min Mat Sto Fac Low Low Robot Analysis Total . | . . . . . . . . . . Derelict Logs Recovered 3 | . . . . 1 . . . 2 . Drone Launches . | . . . . . . . . . . Drone Recoveries . | . . . . . . . . . . Exploration | -11 -10 -10 -10 -9 -8 -8 -7 -7 -7 ------------- Run | Yrd Mat Min Exi Min Mat Sto Fac Low Low Turns Passed 4579 | 95 402 542 698 300 404 347 1179 461 151 Spaces Moved 3788 | 90 252 281 623 330 336 283 915 493 185 Core 424 | 5 . . 1 . . . . 265 153 Treads 442 | . . 257 185 . . . . . . Legs 2561 | . . . 437 330 336 283 915 228 32 Wheels 361 | 85 252 24 . . . . . . . Hover . | . . . . . . . . . . Flight . | . . . . . . . . . . Fastest Speed 50 | 50 80 100 90 90 90 100 90 50 50 Average Speed 99 | 78 85 154 110 90 92 100 97 85 76 Slowest Speed 300 | 80 100 160 160 90 100 100 100 300 190 Overloaded Moves . | . . . . . . . . . . Propulsion Burnouts . | . . . . . . . . . . Robots Hopped . | . . . . . . . . . . Cave-ins Triggered . | . . . . . . . . . . Exploration Rate (%) 41 | 5 35 29 92 81 15 40 27 67 20 Regions Visited 9 Branch Regions 6 Pre-discovered Areas 3 | . . . 1 1 . . . 1 . Known Exits Taken 8 | . 1 1 1 1 1 1 1 1 . Unknown Exits Taken 1 | 1 . . . . . . . . . Scrap Searched 7 | . . . . 1 . . . 2 4 Spaces Dug . | . . . . . . . . . . Terrain Destroyed 84 | . 25 . . . . . 29 30 . Melee . | . . . . . . . . . . Projectile 1 | . 1 . . . . . . . . AOE 83 | . 24 . . . . . 29 30 . Terrain Rammed . | . . . . . . . . . . Walls Destroyed . | . . . . . . . . . . Machines Disabled . | . . . . . . . . . . Actions | -11 -10 -10 -10 -9 -8 -8 -7 -7 -7 --------- Run | Yrd Mat Min Exi Min Mat Sto Fac Low Low Total 4409 | 113 365 338 629 332 410 347 1162 518 195 Wait 373 | 8 53 . . . 45 57 204 5 1 Move 3779 | 89 251 280 622 329 335 282 914 492 185 Hop . | . . . . . . . . . . Pick Up 35 | 10 5 3 2 2 4 . 7 . 2 Fast Attach 29 | 2 5 2 3 . 6 3 4 2 2 Attach 21 | 4 1 4 . . 1 . 5 4 2 Detach 8 | . 1 . 2 . 1 . 1 3 . Swap 18 | . 8 3 . 1 . . 4 2 . Drop 29 | . 8 1 . . 6 5 6 . 3 Fire 96 | . 33 25 . . 11 . 17 10 . Melee . | . . . . . . . . . . Ram . | . . . . . . . . . . Kick 1 | . . . . . 1 . . . . Crush 20 | . . 20 . . . . . . . Escape Stasis . | . . . . . . . . . . Rewire . | . . . . . . . . . . Trap . | . . . . . . . . . . Miscellaneous . | . . . . . . . . . . Route ------- -11/Scrapyard -10/Materials -10/Mines (discovered 2 exits: *Mat / *Exi) -10/Exiles (discovered 2 exits: *Min x2) -9/Mines -8/Materials -8/Storage -7/Factory -7/Lower Caves -7/Lower Caves History --------- Turn | Location | Event 16 | -11/Scrapyard | Discovered new exit (range 16) 96 | -11/Scrapyard | Entered Materials 212 | -10/Materials | Discovered new exit (range 16) 253 | -10/Materials | Identified exit to Mines 301 | -10/Materials | Build established: Mutant 498 | -10/Materials | Entered Mines 510 | -10/Mines | Discovered new exit (range 10) 530 | -10/Mines | Core integrity fell below 50% 796 | -10/Mines | Found a damaged Exp. Sensor Array with a note attached 823 | -10/Mines | Found Prototype Device 933 | -10/Mines | Deemed a non-threat by the Exiles lab entrance 933 | -10/Mines | Discovered new exit (range 5) 938 | -10/Mines | Identified exit to Exiles 989 | -10/Mines | Identified exit to Materials 1040 | -10/Mines | Entered Exiles 1069 | -10/Exiles | Discovered new exit (range 14) 1088 | -10/Exiles | Identified exit to Mines 1125 | -10/Exiles | Met 8R-AWN 1165 | -10/Exiles | Met EX-HEX 1215 | -10/Exiles | Met EX-BIN 1247 | -10/Exiles | Aligned with FarCom system 1248 | -10/Exiles | Given EX-Vault access code 1319 | -10/Exiles | Opened EX-Vault 1339 | -10/Exiles | Found Potential Leg 1341 | -10/Exiles | Found Potential Leg 1373 | -10/Exiles | Warned to stay clear of 0b10 Research branches 1399 | -10/Exiles | Met EX-DEC 1405 | -10/Exiles | Learned location of Zion (-7) 1448 | -10/Exiles | Discovered exit to Mines (range 10) 1536 | -10/Exiles | Visited The Gauntlet 1738 | -10/Exiles | Left Exiles lab with Potential Leg 1738 | -10/Exiles | Entered Mines 1795 | -9/Mines | Received a Rocket Launcher from a helpful Derelict 1885 | -9/Mines | Learned location of Recycling (-8) 1941 | -9/Mines | Discovered new exit (range 5) 1945 | -9/Mines | Identified exit to Materials 2038 | -9/Mines | Entered Materials 2038 | -8/Materials | Evolved 4 slots: Power x1, Propulsion x1, Utility x1, Weapon x1 2251 | -8/Materials | Discovered new exit (range 10) 2260 | -8/Materials | Identified exit to Storage 2442 | -8/Materials | Entered Storage 2448 | -8/Storage | Build established: Scavenger-Skirmisher 2626 | -8/Storage | Assisted by bots powering up and referring to "LRC-V3" 2655 | -8/Storage | Garrison activated, responded to threat 2686 | -8/Storage | Lost 4 allies 2773 | -8/Storage | Discovered new exit (range 13) 2788 | -8/Storage | Identified exit to Factory 2789 | -8/Storage | Entered Factory 2789 | -7/Factory | Accompanied by 4 allies 2789 | -7/Factory | Evolved 2 slots: Utility x2 2980 | -7/Factory | Garrison activated, responded to threat 3017 | -7/Factory | Lost 4 allies 3264 | -7/Factory | Build established: Skirmisher 3850 | -7/Factory | Discovered new exit (range 13) 3967 | -7/Factory | Identified exit to Lower Caves 3968 | -7/Factory | Entered Lower Caves 3994 | -7/Lower Caves | Attracted the attention of an 0b10 outpost 4022 | -7/Lower Caves | Encountered a Warlord checkpoint 4032 | -7/Lower Caves | Identified exit to Lower Caves 4161 | -7/Lower Caves | Build established: Mutant 4206 | -7/Lower Caves | Released all parts (9) 4225 | -7/Lower Caves | Attracted the attention of an 0b10 checkpoint 4226 | -7/Lower Caves | Core integrity fell below 50% 4295 | -7/Lower Caves | Core integrity fell below 20% 4429 | -7/Lower Caves | Entered another Lower Caves area 4450 | -7/Lower Caves | Identified Exp. Sensor Array 4580 | -7/Lower Caves | Destroyed by G-47 Trooper with Particle Gun Last Messages --------------- Found Imp. Carbon-fiber Leg. Found Weapon Shielding. Found 15 Matter. Acquired 4 matter. Searching scrap... Found Hrd. Heavy Armor Plating. Found 19 Matter. Searching scrap... Found Mak. Spear. Found Mak. Power Source. Found Shock Absorption System. Found Mak. Spear. Found 12 Matter. Dropped Trap Extractor. Trap Extractor crushed and broken. Acquired Hrd. Heavy Armor Plating. Acquired Imp. Carbon-fiber Leg. Acquired 10 matter. Acquired 1 matter. System corrupted: Energy discharge (-54). Map ----- +----------------------------------------------------+ | ?????????????????????????????????????????????????? | | ?????????????????????????????????????????????????? | | ????????????????????????####?????????????????????? | | ???????????????????????##% #?????????????????????? | | ??????????????????????##!/*#?????????????????????? | | ??????????????????????#/ %##?????????????????????? | | ??????????????????#####] ###??###???####?????????? | | ??????????????????# #!## #### #??## ##????????? | | ?????######????????# $ ## #?## ########## | | ???? ###### ## #?# ## # | | ???? ### ######## # | | ???????????# # #??????# # | | ???????????### #### ## ##???#### # | | ?????????????# ????## ##### ### ##?#### # | | ????????????????????# ##???# ###?# #### # | | ????????????????????# #????# #???# | | ????????????????????# #???## #???# #### | | ????????????????????# #???# ##?# #?## | | ???????????????????? $#???# ## ##?## | | ????????????????????####### ##?## | | ???????????????????????# g #??## | | ???????????????????????# g ### | | ???????????????????????## g g% | | ????????????????????????## ## | | ???????????????????????### ## #### | | ???????????????????????# @ ## ???## | | ?????????????????? ## ### ?????## | | ?????????????????# ?## ##?##???????# | | ????????????????# ????#########???????????# | | ????????????????# ???????????????????????## | | ????????????????## ???????????????????????## | | ?????????????????## ???????????????????????# | | ??????????????????## %????????????????????????# | | ???????????????????# #????????????????????????## | | ???????????????????#s??????????????????????????## | | ???????????????????#???????????????????????????## | | ??????????????????????????????????????????????## | | ?????????????????????????????????????????????## | | ??????????????????????????????????????????#### # | | ?????????????????????????????????????????## ## | | ?????????????????????????????????????????# ##? | | ????????????????????????????????????????# ####?? | | ????????????????????????????????????????#####????? | | ?????????????????????????????????????????????????? | | ?????????????????????????????????????????????????? | | ?????????????????????????????????????????????????? | | ?????????????????????????????????????????????????? | | ?????????????????????????????????????????????????? | | ?????????????????????????????????????????????????? | | ?????????????????????????????????????????????????? | +----------------------------------------------------+ Best States ------------- Heat Dissipation 48 Energy Generation 27 Energy Capacity 480 Matter Stores 446 Matter Capacity 450 Sight Range 16 Robot Scan Range 20 Terrain Scan Density 85 Armor Coverage 600 Evasion (%) 57 Targeting Accuracy 6 Recoil Reduction 2 Trap Extractor Capacity 4 Item Schematics ----------------- None Robot Schematics ------------------ None Fabricated ------------ Nothing Alien Tech Used ----------------- None Achievements -------------- One Hack Too Far The More The Merrier Challenges ------------ None Game ------ Seed HardcellTransmissionExpander Manual? 0 Play Time 01:15:46 Cumulative 6.2 hours Start 2024.04.08 @ 10:06:39 End 2024.04.08 @ 11:34:16 Sessions 1 Manual Loads 0 Difficulty Rogue Special Mode None Game No. 4 Rogue 4 Adventurer 0 Explorer 0 Win Type - Total 0 Types 0/0/0/0/0/0/0/0/0 Lore% 10 Gallery% 11 Achievement% 10 Wizard Run 0 Options --------- Layout 2 ASCII 0 Keyboard 1 Movement Vi Keybinds 0 Fullscreen 2 Font 32/Tamsyn Map View 50x44 Zoom Use 0% Tactical HUD 0 Map Filters NONE Filters NONE Steam 1 RUN: f8107871-600a-47c9-afa5-c6539b0d6125